fUSD/lending_fUSD_20250106
["ID","MTS","AMOUNT","RATE_DAILY","PERIOD"]
[347839015,1736146257146,-500.0,0.00010956,2]
[347839016,1736146257155,-509.36,0.00010956,2]
[347839017,1736146257164,-500.0,0.00010956,2]
[347839018,1736146257174,-500.0,0.00010956,2]
[347839019,1736146257183,-500.0,0.00010956,2]
[347839020,1736146257192,-500.0,0.00010956,2]
[347839021,1736146257201,-500.0,0.00010956,2]
[347839022,1736146257211,-500.0,0.00010956,2]
[347839023,1736146257220,-500.0,0.00010956,2]
[347839024,1736146257229,-500.0,0.00010956,2]
[347839025,1736146257239,-500.0,0.00010956,2]
[347839026,1736146257248,-500.0,0.00010956,2]
[347839027,1736146257257,-500.0,0.00010956,2]
[347839028,1736146257267,-500.0,0.00010956,2]
[347839029,1736146257278,-500.0,0.00010956,2]
[347839030,1736146257288,-500.0,0.00010956,2]
[347839031,1736146257298,-500.0,0.00010956,2]
[347839032,1736146257308,-500.0,0.00010956,2]
[347839033,1736146257317,-500.0,0.00010956,2]
[347839034,1736146257326,-1369.64,0.00010956,2]
[347839035,1736146257335,-500.0,0.00010956,2]
[347839036,1736146257345,-500.0,0.00010956,2]
[347839037,1736146257354,-500.0,0.00010956,2]
[347839038,1736146257364,-500.0,0.00010956,2]
[347839039,1736146257374,-500.0,0.00010956,2]
[347839040,1736146257383,-1238.2,0.00010956,2]
[347839041,1736146257393,-2225.72,0.00010956,2]
[347839042,1736146257403,-500.0,0.00010956,2]
[347839043,1736146257412,-500.0,0.00010956,2]
[347839044,1736146257422,-561.09,0.00010956,2]
[347839045,1736146257431,-845.21,0.00010956,2]
[347839046,1736146257440,-2383.62,0.00010956,2]
[347839047,1736146257450,-500.0,0.00010956,2]
[347839048,1736146257460,-500.0,0.00010956,2]
[347839049,1736146257470,-500.0,0.00010956,2]
[347839050,1736146257480,-500.0,0.00010956,2]
[347839051,1736146257490,-556.23,0.00010956,2]
[347839052,1736146257500,-500.0,0.00010956,2]
[347839053,1736146257510,-5872.59,0.00010956,2]
[347839054,1736146257520,-500.0,0.00010956,2]
[347839055,1736146257529,-589.06,0.00010956,2]
[347839056,1736146257539,-500.0,0.00010956,2]
[347839057,1736146257549,-500.0,0.00010956,2]
[347839058,1736146257558,-673.64,0.00010956,2]
[347839059,1736146257568,-500.0,0.00010956,2]
[347839060,1736146257578,-500.0,0.00010956,2]
[347839061,1736146257587,-500.0,0.00010956,2]
[347839062,1736146257596,-500.0,0.00010956,2]
[347839063,1736146257605,-500.0,0.00010956,2]
[347839064,1736146257615,-500.0,0.00010956,2]
[347839065,1736146257624,-500.0,0.00010956,2]
[347839066,1736146257633,-500.0,0.00010956,2]
[347839067,1736146257643,-256.26529719,0.00010956,2]
[347839068,1736146257653,-500.0,0.00010956,2]
[347839069,1736146257662,-500.0,0.00010956,2]
[347839070,1736146257672,-500.0,0.00010956,2]
[347839071,1736146257682,-500.0,0.00010956,2]
[347839072,1736146257692,-500.0,0.00010956,2]
[347839073,1736146257701,-500.0,0.00010956,2]
[347839074,1736146257710,-500.0,0.00010956,2]
[347839075,1736146257720,-2620.63,0.00010956,2]
[347839076,1736146257729,-515.0,0.00010956,2]
[347839077,1736146257739,-1465.5,0.00010956,2]
[347839078,1736146257748,-500.0,0.00010956,2]
[347839079,1736146257758,-500.0,0.00010956,2]
[347839080,1736146257767,-500.0,0.00010956,2]
[347839081,1736146257780,-502.62,0.00010956,2]
[347839082,1736146257790,-500.0,0.00010956,2]
[347839083,1736146257801,-2213.07,0.00010956,2]
[347839084,1736146257811,-885.5,0.00010956,2]
[347839085,1736146257822,-500.0,0.00010956,2]
[347839086,1736146257832,-500.0,0.00010956,2]
[347839087,1736146257841,-500.0,0.00010956,2]
[347839088,1736146257852,-3079.1,0.00010956,2]
[347839089,1736146257862,-2813.28,0.00010956,2]
[347839090,1736146257872,-500.0,0.00010956,2]
[347839091,1736146257882,-500.0,0.00010956,2]
[347839092,1736146257892,-500.0,0.00010956,2]
[347839093,1736146257902,-1353.21,0.00010956,2]
[347839094,1736146257913,-500.0,0.00010956,2]
[347839095,1736146257922,-500.0,0.00010956,2]
[347839096,1736146257931,-500.0,0.00010956,2]
[347839097,1736146257941,-500.0,0.00010956,2]
[347839098,1736146257951,-500.0,0.00010956,2]
[347839099,1736146257961,-500.0,0.00010956,2]
[347839100,1736146257971,-950.57,0.00010956,2]
[347839101,1736146257981,-614.5,0.00010956,2]
[347839102,1736146257991,-500.0,0.00010956,2]
[347839103,1736146258000,-500.0,0.00010956,2]
[347839104,1736146258009,-500.0,0.00010956,2]
[347839105,1736146258019,-589.55,0.00010956,2]
[347839106,1736146258028,-500.0,0.00010957,2]
[347839107,1736146258037,-1036.35,0.00010957,2]
[347839108,1736146258047,-1081.26,0.00010957,2]
[347839109,1736146258056,-2048.23,0.00010957,2]
[347839110,1736146258066,-957.56,0.00010957,2]
[347839111,1736146258076,-1278.88,0.00010957,2]
[347839112,1736146258086,-644.36,0.00010957,2]
[347839113,1736146258095,-1260.55,0.00010957,2]
[347839114,1736146258105,-731.83,0.00010957,2]
[347839115,1736146258115,-1340.36,0.00010957,2]
[347839116,1736146258125,-1187.99,0.00010957,2]
[347839117,1736146258135,-2277.14,0.00010957,2]
[347839118,1736146258144,-500.0,0.00010957,2]
[347839119,1736146258154,-1121.46,0.00010957,2]
[347839120,1736146258163,-815.01,0.00010957,2]
[347839121,1736146258173,-330.06175415,0.00010958,2]
[347839122,1736146258182,-487.54172076,0.00010958,2]
[347839123,1736146258192,-500.0,0.00010958,2]
[347839124,1736146258202,-576.01,0.00010958,2]
[347839125,1736146258211,-500.0,0.00010958,2]
[347839126,1736146258221,-500.0,0.00010958,2]
[347839127,1736146258230,-500.0,0.00010958,2]
[347839128,1736146258240,-768.67,0.00010958,2]
[347839129,1736146258249,-569.39,0.00010958,2]
[347839130,1736146258259,-700.11,0.00010958,2]
[347839131,1736146258268,-785.52,0.00010958,2]
[347839132,1736146258277,-500.0,0.00010958,2]
[347839133,1736146258286,-500.0,0.00010958,2]
[347839134,1736146258295,-500.0,0.00010958,2]
[347839135,1736146258305,-500.0,0.00010958,2]
[347839136,1736146258315,-500.0,0.00010958,2]
[347839137,1736146258325,-672.37,0.00010958,2]
[347839138,1736146258335,-500.0,0.00010958,2]
[347839139,1736146258345,-500.0,0.00010958,2]
[347839140,1736146258355,-3343.13,0.00010958,2]
[347839141,1736146258364,-500.0,0.00010958,2]
[347839142,1736146258374,-500.0,0.00010958,2]
[347839143,1736146258384,-500.0,0.00010958,2]
[347839144,1736146258394,-543.03940872,0.00010958,2]
[347839145,1736146258402,-500.0,0.00010958,2]
[347839146,1736146258411,-500.0,0.00010958,2]
[347839147,1736146258421,-1000.0,0.00010958,2]
[347839148,1736146258431,-500.0,0.00010958,2]
[347839149,1736146258441,-507.32,0.00010958,2]
[347839150,1736146258451,-536.63,0.00010958,2]
[347839151,1736146258460,-500.0,0.00010958,2]
[347839152,1736146258471,-500.0,0.00010958,2]
[347839153,1736146258481,-500.0,0.00010958,2]
[347839154,1736146258491,-500.0,0.00010958,2]
[347839155,1736146258501,-500.0,0.00010958,2]
[347839156,1736146258511,-500.0,0.00010958,2]
[347839157,1736146258520,-1691.28,0.00010958,2]
[347839158,1736146258530,-500.0,0.00010958,2]
[347839159,1736146258540,-716.23,0.00010958,2]
[347839160,1736146258549,-500.0,0.00010958,2]
[347839161,1736146258559,-500.0,0.00010958,2]
[347839162,1736146258568,-259.52594462,0.00010958,2]
[347839163,1736146258577,-602.7,0.00010958,2]
[347839164,1736146258587,-621.68524538,0.00010958,2]
[347839165,1736146258597,-500.0,0.00010958,2]
[347839166,1736146258606,-500.0,0.00010958,2]
[347839167,1736146258616,-500.0,0.00010958,2]
[347839168,1736146258626,-709.13,0.00010958,2]
[347839169,1736146258636,-1496.1,0.00010959,2]
[347839170,1736146258645,-400.0,0.00010986,2]
[347839171,1736146258655,-500.0,0.00011094,2]
[347839172,1736146258664,-500.0,0.00011094,2]
[347839173,1736146258673,-500.0,0.00011095,2]
[347839174,1736146258683,-449.5,0.00011095,2]
[347839175,1736146258692,-500.0,0.00011095,2]
[347839176,1736146258701,-500.0,0.00011095,2]
[347839177,1736146258711,-500.0,0.00011095,2]
[347839178,1736146258720,-500.0,0.00011095,2]
[347839179,1736146258729,-500.0,0.00011095,2]
[347839180,1736146258739,-500.0,0.00011095,2]
[347839181,1736146258748,-500.0,0.00011095,2]
[347839182,1736146258758,-316.09,0.00011095,2]
[347839183,1736146258767,-500.0,0.00011095,2]
[347839184,1736146258780,-500.0,0.00011095,2]
[347839185,1736146258791,-500.0,0.00011095,2]
[347839186,1736146258801,-500.0,0.00011095,2]
[347839187,1736146258811,-500.0,0.00011095,2]
[347839188,1736146258820,-500.0,0.00011095,2]
[347839189,1736146258830,-500.0,0.00011095,2]
[347839190,1736146258839,-500.0,0.00011095,2]
[347839191,1736146258848,-500.0,0.00011095,2]
[347839192,1736146258858,-500.0,0.00011095,2]
[347839193,1736146258867,-500.0,0.00011095,2]
[347839194,1736146258876,-500.0,0.00011095,2]
[347839195,1736146258885,-500.0,0.00011095,2]
[347839196,1736146258895,-500.0,0.00011095,2]
[347839197,1736146258904,-500.0,0.00011095,2]
[347839198,1736146258914,-500.0,0.00011095,2]
[347839199,1736146258924,-500.0,0.00011095,2]
[347839200,1736146258933,-500.0,0.00011095,2]
[347839201,1736146258942,-500.0,0.00011095,2]
[347839202,1736146258952,-587.21,0.00011095,2]
[347839203,1736146258962,-251.76994488,0.00011095,2]
[347839204,1736146258972,-500.0,0.00011095,2]
[347839205,1736146258982,-4772.46,0.00011095,2]
[347839206,1736146258991,-4343.04,0.00011095,2]
[347839207,1736146259001,-500.0,0.00011095,2]
[347839208,1736146259011,-500.0,0.00011095,2]
[347839209,1736146259020,-1700.1,0.00011095,2]
[347839210,1736146259030,-500.0,0.00011095,2]
[347839211,1736146259040,-1677.41,0.00011095,2]
[347839212,1736146259050,-1979.36,0.00011095,2]
[347839213,1736146259059,-500.0,0.00011095,2]
[347839214,1736146259068,-2912.5,0.00011095,2]
[347839215,1736146259079,-637.75,0.00011095,2]
[347839216,1736146259087,-2622.3,0.00011095,2]
[347839217,1736146259097,-500.0,0.00011095,2]
[347839218,1736146259106,-758.31,0.00011095,2]
[347839219,1736146259115,-500.0,0.00011095,2]
[347839220,1736146259125,-500.0,0.00011095,2]
[347839221,1736146259134,-500.0,0.00011095,2]
[347839222,1736146259143,-500.0,0.00011095,2]
[347839223,1736146259152,-500.0,0.00011095,2]
[347839224,1736146259161,-500.0,0.00011095,2]
[347839225,1736146259171,-500.0,0.00011129,2]
[347839226,1736146259180,-500.0,0.00011129,2]
[347839227,1736146259189,-371.57,0.00011129,2]
[347839228,1736146259199,-542.68,0.00011129,2]
[347839229,1736146259209,-500.0,0.00011129,2]
[347839230,1736146259218,-515.65014651,0.00011129,2]
[347839231,1736146259227,-500.0,0.00011129,2]
[347839232,1736146259236,-1107.86,0.00011129,2]
[347839233,1736146259247,-526.06,0.00011129,2]
[347839234,1736146259256,-4758.37,0.00011129,2]
[347839235,1736146259266,-500.0,0.00011129,2]
[347839236,1736146259275,-556.63,0.00011129,2]
[347839237,1736146259285,-500.0,0.00011129,2]
[347839238,1736146259296,-443.82501432,0.00011129,2]
[347839239,1736146259306,-1493.4,0.00011129,2]
[347839240,1736146259315,-500.0,0.00011129,2]
[347839241,1736146259325,-2244.15,0.00011129,2]
[347839242,1736146259334,-632.11,0.00011129,2]
[347839243,1736146259344,-500.0,0.00011129,2]
[347839244,1736146259354,-500.0,0.00011129,2]
[347839245,1736146259363,-1083.83,0.00011129,2]
[347839246,1736146259373,-1023.4,0.00011129,2]
[347839247,1736146259382,-39129.1599208,0.00011171,2]
[347839248,1736146259392,-362.93,0.00011172,2]
[347839249,1736146259401,-39129.1599208,0.00011173,2]
[347839250,1736146259411,-39129.1599208,0.00011187,2]
[347839251,1736146259420,-39129.1599208,0.00011189,2]
[347839252,1736146259430,-39129.1599208,0.00011194,2]
[347839253,1736146259439,-39129.1599208,0.00011198,2]
[347839254,1736146259449,-3100.0,0.000112,4]
[347839255,1736146259459,-1933.95958532,0.0001122,2]
[347839256,1736146259468,-1657.33,0.00011229,2]
[347839257,1736146259478,-704.79,0.00011229,2]
[347839258,1736146259487,-500.0,0.0001123,2]
[347839259,1736146259497,-1019.75,0.0001123,2]
[347839260,1736146259506,-319.77988045,0.0001123,2]
[347839261,1736146259515,-500.0,0.0001123,2]
[347839262,1736146259525,-500.0,0.0001123,2]
[347839263,1736146259534,-500.0,0.0001123,2]
[347839264,1736146259544,-1544.02,0.0001123,2]
[347839265,1736146259553,-500.0,0.0001123,2]
[347839266,1736146259562,-500.0,0.0001123,2]
[347839267,1736146259572,-500.0,0.0001123,2]
[347839268,1736146259581,-500.0,0.0001123,2]
[347839269,1736146259590,-500.0,0.0001123,2]
[347839270,1736146259600,-500.0,0.0001123,2]
[347839271,1736146259610,-500.0,0.0001123,2]
[347839272,1736146259619,-500.0,0.0001123,2]
[347839273,1736146259628,-754.58,0.0001123,2]
[347839274,1736146259638,-500.0,0.0001123,2]
[347839275,1736146259647,-365.35,0.0001123,2]
[347839276,1736146259657,-836.56,0.0001123,2]
[347839277,1736146259667,-1621.684072,0.0001123,2]
[347839278,1736146259676,-500.0,0.0001123,2]
[347839279,1736146259685,-157.403562,0.0001123,2]
[347839280,1736146259694,-500.0,0.0001123,2]
[347839281,1736146259703,-500.0,0.0001123,2]
[347839282,1736146259713,-500.0,0.0001123,2]
[347839283,1736146259903,-500.0,0.0001123,2]
[347839284,1736146259914,-602.83309535,0.0001123,2]
[347839285,1736146259925,-1758.16002,0.0001123,2]
[347839286,1736146259934,-2716.93,0.0001123,2]
[347839287,1736146259944,-729.04,0.0001123,2]
[347839288,1736146259954,-500.0,0.0001123,2]
[347839289,1736146259963,-500.0,0.0001123,2]
[347839290,1736146259972,-500.0,0.0001123,2]
[347839291,1736146259982,-500.0,0.0001123,2]
[347839292,1736146259991,-509.36,0.0001123,2]
[347839293,1736146260000,-260.07562414,0.0001123,2]
[347839294,1736146260010,-500.0,0.0001123,2]
[347839295,1736146260020,-500.0,0.0001123,2]
[347839296,1736146260030,-500.0,0.0001123,2]
[347839297,1736146260040,-500.0,0.0001123,2]
[347839298,1736146260050,-500.0,0.0001123,2]
[347839299,1736146260060,-500.0,0.0001123,2]
[347839300,1736146260070,-500.0,0.0001123,2]
[347839301,1736146260080,-500.0,0.0001123,2]
[347839302,1736146260090,-500.0,0.0001123,2]
[347839303,1736146260099,-500.0,0.0001123,2]
[347839304,1736146260109,-500.0,0.0001123,2]
[347839305,1736146260119,-500.0,0.0001123,2]
[347839306,1736146260128,-500.0,0.0001123,2]
[347839307,1736146260138,-500.0,0.0001123,2]
[347839308,1736146260147,-500.0,0.0001123,2]
[347839309,1736146260157,-500.0,0.0001123,2]
[347839310,1736146260167,-1369.64,0.0001123,2]
[347839311,1736146260177,-500.0,0.0001123,2]
[347839312,1736146260186,-500.0,0.0001123,2]
[347839313,1736146260196,-500.0,0.0001123,2]
[347839314,1736146260206,-500.0,0.0001123,2]
[347839315,1736146260216,-500.0,0.0001123,2]
[347839316,1736146260226,-1238.2,0.0001123,2]
[347839317,1736146260236,-2225.72,0.0001123,2]
[347839318,1736146260246,-500.0,0.0001123,2]
[347839319,1736146260256,-500.0,0.0001123,2]
[347839320,1736146260267,-561.09,0.0001123,2]
[347839321,1736146260277,-845.21,0.0001123,2]
[347839322,1736146260287,-2383.62,0.0001123,2]
[347839323,1736146260297,-500.0,0.0001123,2]
[347839324,1736146260307,-500.0,0.0001123,2]
[347839325,1736146260317,-500.0,0.0001123,2]
[347839326,1736146260327,-500.0,0.0001123,2]
[347839327,1736146260337,-556.23,0.0001123,2]
[347839328,1736146260347,-500.0,0.0001123,2]
[347839329,1736146260357,-5872.59,0.0001123,2]
[347839330,1736146260367,-583.99345333,0.0001123,2]
[347839331,1736146260376,-589.06,0.0001123,2]
[347839332,1736146260387,-500.0,0.0001123,2]
[347839333,1736146260397,-500.0,0.0001123,2]
[347839334,1736146260406,-673.64,0.0001123,2]
[347839335,1736146260416,-500.0,0.0001123,2]
[347839336,1736146260426,-500.0,0.0001123,2]
[347839337,1736146260436,-500.0,0.0001123,2]
[347839338,1736146260446,-500.0,0.0001123,2]
[347839339,1736146260456,-500.0,0.0001123,2]
[347839340,1736146260466,-500.0,0.0001123,2]
[347839341,1736146260476,-500.0,0.0001123,2]
[347839342,1736146260486,-500.0,0.0001123,2]
[347839343,1736146260496,-500.0,0.0001123,2]
[347839344,1736146260505,-500.0,0.0001123,2]
[347839345,1736146260515,-500.0,0.0001123,2]
[347839346,1736146260525,-500.0,0.0001123,2]
[347839347,1736146260534,-500.0,0.0001123,2]
[347839348,1736146260547,-500.0,0.0001123,2]
[347839349,1736146260557,-500.0,0.0001123,2]
[347839350,1736146260567,-2620.63,0.0001123,2]
[347839351,1736146260576,-515.0,0.0001123,2]
[347839352,1736146260586,-1465.5,0.0001123,2]
[347839353,1736146260595,-500.0,0.0001123,2]
[347839354,1736146260606,-325.97080646,0.0001123,2]
[347839355,1736146260615,-500.0,0.0001123,2]
[347839356,1736146260625,-502.62,0.0001123,2]
[347839357,1736146260634,-500.0,0.0001123,2]
[347839358,1736146260643,-2213.07,0.0001123,2]
[347839359,1736146260652,-885.5,0.0001123,2]
[347839360,1736146260662,-500.0,0.0001123,2]
[347839361,1736146260672,-500.0,0.0001123,2]
[347839362,1736146260682,-230.57877558,0.0001123,2]
[347839363,1736146260691,-3079.1,0.0001123,2]
[347839364,1736146260701,-2813.28,0.0001123,2]
[347839365,1736146260710,-500.0,0.0001123,2]
[347839366,1736146260719,-500.0,0.0001123,2]
[347839367,1736146260729,-500.0,0.0001123,2]
[347839368,1736146260738,-2437.82,0.0001123,2]
[347839369,1736146260748,-1353.21,0.0001123,2]
[347839370,1736146260757,-500.0,0.0001123,2]
[347839371,1736146260767,-500.0,0.0001123,2]
[347839372,1736146260779,-500.0,0.0001123,2]
[347839373,1736146260789,-500.0,0.0001123,2]
[347839374,1736146260799,-500.0,0.0001123,2]
[347839375,1736146260809,-1394.0,0.0001123,2]
[347839376,1736146260819,-500.0,0.0001123,2]
[347839377,1736146260829,-950.57,0.0001123,2]
[347839378,1736146260838,-500.0,0.0001123,2]
[347839379,1736146260849,-500.0,0.0001123,2]
[347839380,1736146260862,-614.5,0.0001123,2]
[347839381,1736146260871,-500.0,0.0001123,2]
[347839382,1736146260880,-589.55,0.0001123,2]
[347839383,1736146260889,-1036.35,0.00011231,2]
[347839384,1736146260899,-1081.26,0.00011231,2]
[347839385,1736146260908,-2048.23,0.00011231,2]
[347839386,1736146260917,-957.56,0.00011231,2]
[347839387,1736146260927,-1278.88,0.00011231,2]
[347839388,1736146260936,-644.36,0.00011231,2]
[347839389,1736146260945,-1260.55,0.00011231,2]
[347839390,1736146260954,-731.83,0.00011231,2]
[347839391,1736146260964,-1340.36,0.00011231,2]
[347839392,1736146260974,-1187.99,0.00011231,2]
[347839393,1736146260983,-2277.14,0.00011231,2]
[347839394,1736146260993,-1121.46,0.00011231,2]
[347839395,1736146261003,-815.01,0.00011231,2]
[347839396,1736146261012,-500.0,0.00011232,2]
[347839397,1736146261022,-576.01,0.00011232,2]
[347839398,1736146261031,-500.0,0.00011232,2]
[347839399,1736146261040,-500.0,0.00011232,2]
[347839400,1736146261049,-500.0,0.00011232,2]
[347839401,1736146261059,-768.67,0.00011232,2]
[347839402,1736146261068,-569.39,0.00011232,2]
[347839403,1736146261077,-700.11,0.00011232,2]
[347839404,1736146261086,-785.52,0.00011232,2]
[347839405,1736146261095,-500.0,0.00011232,2]
[347839406,1736146261104,-500.0,0.00011232,2]
[347839407,1736146261114,-500.0,0.00011232,2]
[347839408,1736146261123,-500.0,0.00011232,2]
[347839409,1736146261133,-500.0,0.00011232,2]
[347839410,1736146261142,-672.37,0.00011232,2]
[347839411,1736146261152,-500.0,0.00011232,2]
[347839412,1736146261162,-500.0,0.00011232,2]
[347839413,1736146261171,-3343.13,0.00011232,2]
[347839414,1736146261180,-500.0,0.00011232,2]
[347839415,1736146261190,-500.0,0.00011232,2]
[347839416,1736146261199,-500.0,0.00011232,2]
[347839417,1736146261208,-500.0,0.00011232,2]
[347839418,1736146261218,-500.0,0.00011232,2]
[347839419,1736146261227,-1000.0,0.00011232,2]
[347839420,1736146261236,-500.0,0.00011232,2]
[347839421,1736146261247,-507.32,0.00011232,2]
[347839422,1736146261256,-536.63,0.00011232,2]
[347839423,1736146261266,-500.0,0.00011232,2]
[347839424,1736146261276,-500.0,0.00011232,2]
[347839425,1736146261286,-500.0,0.00011232,2]
[347839426,1736146261298,-500.0,0.00011232,2]
[347839427,1736146261307,-500.0,0.00011232,2]
[347839428,1736146261316,-500.0,0.00011232,2]
[347839429,1736146261326,-1691.28,0.00011232,2]
[347839430,1736146261335,-500.0,0.00011232,2]
[347839431,1736146261344,-716.23,0.00011232,2]
[347839432,1736146261354,-500.0,0.00011232,2]
[347839433,1736146261363,-500.0,0.00011232,2]
[347839434,1736146261372,-602.7,0.00011232,2]
[347839435,1736146261382,-500.0,0.00011232,2]
[347839436,1736146261392,-500.0,0.00011232,2]
[347839437,1736146261401,-500.0,0.00011232,2]
[347839438,1736146261411,-709.13,0.00011232,2]
[347839439,1736146261420,-500.0,0.00011264,2]
[347839440,1736146261430,-500.0,0.00011264,2]
[347839441,1736146261440,-3900.0,0.000113,4]
[347839442,1736146261449,-500.0,0.00011307,2]
[347839443,1736146261459,-500.0,0.00011307,2]
[347839444,1736146261469,-503.803,0.00011308,2]
[347839445,1736146261479,-641.765,0.00011308,2]
[347839446,1736146261489,-567.502,0.00011308,2]
[347839447,1736146261499,-150.975,0.00011308,2]
[347839448,1736146261508,-1860.0,0.00011308,2]
[347839449,1736146261518,-819.0,0.00011308,2]
[347839450,1736146261527,-1258.0,0.00011308,2]
[347839451,1736146261536,-918.0,0.00011308,2]
[347839452,1736146261547,-3776.0,0.00011308,2]
[347839453,1736146261556,-529.116,0.00011308,2]
[347839454,1736146261566,-3975.0,0.00011308,2]
[347839455,1736146261575,-3894.0,0.00011308,2]
[347839456,1736146261584,-1173.0,0.00011308,2]
[347839457,1736146261594,-150.0,0.00011308,2]
[347839458,1736146261603,-500.93715457,0.00011368,2]
[347839459,1736146261612,-500.0,0.00011368,2]
[347839460,1736146261622,-500.0,0.00011369,2]
[347839461,1736146261631,-561.33007608,0.00011369,2]
[347839462,1736146261639,-500.0,0.00011369,2]
[347839463,1736146261648,-591.45312377,0.00011369,2]
[347839464,1736146261657,-500.0,0.00011369,2]
[347839465,1736146261666,-500.0,0.00011369,2]
[347839466,1736146261675,-308.88606876,0.00011369,2]
[347839467,1736146261684,-500.0,0.00011369,2]
[347839468,1736146261693,-500.0,0.00011369,2]
[347839469,1736146261702,-500.0,0.00011369,2]
[347839470,1736146261711,-500.0,0.00011369,2]
[347839471,1736146261720,-500.0,0.00011369,2]
[347839472,1736146261730,-500.0,0.00011369,2]
[347839473,1736146261739,-552.89,0.00011369,2]
[347839474,1736146261748,-500.0,0.00011369,2]
[347839475,1736146261758,-500.0,0.00011369,2]
[347839476,1736146261767,-500.0,0.00011369,2]
[347839477,1736146261778,-500.0,0.00011369,2]
[347839478,1736146261787,-249.36155622,0.00011369,2]
[347839479,1736146261798,-500.0,0.00011369,2]
[347839480,1736146261808,-500.0,0.00011369,2]
[347839481,1736146261817,-500.0,0.00011369,2]
[347839482,1736146261826,-500.0,0.00011369,2]
[347839483,1736146261836,-500.0,0.00011369,2]
[347839484,1736146261845,-500.0,0.00011369,2]
[347839485,1736146261855,-500.0,0.00011369,2]
[347839486,1736146261864,-500.0,0.00011369,2]
[347839487,1736146261874,-587.21,0.00011369,2]
[347839488,1736146261883,-500.0,0.00011369,2]
[347839489,1736146261892,-4772.46,0.00011369,2]
[347839490,1736146261901,-4343.04,0.00011369,2]
[347839491,1736146261911,-500.0,0.00011369,2]
[347839492,1736146261921,-500.0,0.00011369,2]
[347839493,1736146261930,-1700.1,0.00011369,2]
[347839494,1736146261940,-343.57080778,0.00011369,2]
[347839495,1736146261949,-1677.41,0.00011369,2]
[347839496,1736146261958,-500.0,0.00011369,2]
[347839497,1736146261967,-1979.36,0.00011369,2]
[347839498,1736146261976,-500.0,0.00011369,2]
[347839499,1736146261986,-2912.5,0.00011369,2]
[347839500,1736146261995,-637.75,0.00011369,2]
[347839501,1736146262004,-2622.3,0.00011369,2]
[347839502,1736146262014,-500.0,0.00011369,2]
[347839503,1736146262024,-758.31,0.00011369,2]
[347839504,1736146262033,-500.0,0.00011369,2]
[347839505,1736146262043,-500.0,0.00011369,2]
[347839506,1736146262052,-500.0,0.00011369,2]
[347839507,1736146262061,-500.0,0.00011369,2]
[347839508,1736146262070,-500.0,0.00011369,2]
[347839509,1736146262079,-500.0,0.00011369,2]
[347839510,1736146262088,-376.149,0.000114,2]
[347839511,1736146262097,-700.0,0.000114,4]
[347839512,1736146262106,-333.74,0.00011403,2]
[347839513,1736146262115,-500.0,0.00011403,2]
[347839514,1736146262125,-500.0,0.00011403,2]